fUSD/lending_fUSD_20260305
["ID","MTS","AMOUNT","RATE_DAILY","PERIOD"]
[407732891,1772711994699,5000.01,9.95e-05,2]
[407732892,1772711995117,5000.01,9.95e-05,2]
[407732893,1772711995139,5000.01,9.95e-05,2]
[407732894,1772711995160,5000.01,9.95e-05,2]
[407732895,1772711995181,5000.01,9.95e-05,2]
[407732896,1772711995202,5000.01,9.95e-05,2]
[407732897,1772711995222,3082.18183933,9.95e-05,2]
[407732898,1772712005488,7659.9823182,0.00011,2]
[407732899,1772712008397,3805.652244,7.945e-05,2]
[407732900,1772712029509,505.0,0.00014,2]
[407732901,1772712051693,804.22688682,0.00015,14]
[407732902,1772712052579,4195.78311318,0.000162,5]
[407732903,1772712052603,804.21692231,0.000162,5]
[407732905,1772712068317,3383.481,7.945e-05,2]
[407732906,1772712069345,205.0,9.8e-05,2]
[407732907,1772712100805,272.279121,0.0001615,7]
[407732908,1772712136680,500.0,0.00012,2]
[407732909,1772712136725,500.0,0.00012,2]
[407732910,1772712137010,500.0,0.00012,2]
[407732911,1772712137125,500.0,0.00012,2]
[407732912,1772712137299,500.0,0.00012,2]
[407732913,1772712137418,651.34731039,0.00012,2]
[407732914,1772712137446,500.0,0.00012,2]
[407732915,1772712137638,500.0,0.00012,2]
[407732916,1772712137798,500.0,0.00012,2]
[407732917,1772712137827,178.6856463,0.00012,2]
[407732918,1772712137851,321.3143537,0.00012,2]
[407732919,1772712137906,500.0,0.00012,2]
[407732920,1772712138100,500.0,0.00012,2]
[407732921,1772712138266,500.0,0.00012,2]
[407732922,1772712138565,500.0,0.00012,2]
[407732923,1772712138605,500.0,0.00012,2]
[407732924,1772712138763,500.0,0.00012,2]
[407732925,1772712139068,500.0,0.00011287,2]
[407732926,1772712139099,500.0,0.00011287,2]
[407732927,1772712139286,500.0,0.00011287,2]
[407732928,1772712139539,500.0,0.00011287,2]
[407732929,1772712139569,500.0,0.00011287,2]
[407732930,1772712139780,500.0,0.00011287,2]
[407732931,1772712140208,500.0,0.00011287,2]
[407732932,1772712140698,500.0,0.00011287,2]
[407732933,1772712140834,500.0,0.00011287,2]
[407732934,1772712141222,900.0,0.00011287,2]
[407732935,1772712141333,500.0,0.00011287,2]
[407732936,1772712141857,500.0,0.00011287,2]
[407732937,1772712143800,278.6956463,0.00012,2]
[407732938,1772712143823,221.3043537,0.00012,2]
[407732939,1772712144299,500.0,0.00012,2]
[407732940,1772712144813,500.0,0.00011287,2]
[407732941,1772712144980,1968.42541846,0.0001,2]
[407732942,1772712145283,929.66197718,0.00011287,2]
[407732943,1772712145610,500.0,0.00012,2]
[407732944,1772712146096,500.0,0.00012,2]
[407732945,1772712146359,500.0,0.00012,2]
[407732946,1772712146551,500.0,0.00012,2]
[407732947,1772712146852,500.0,0.00012,2]
[407732948,1772712147036,500.0,0.00011287,2]
[407732949,1772712147328,500.0,0.00012,2]
[407732950,1772712147495,900.0,0.00011287,2]
[407732951,1772712147800,500.0,0.00011287,2]
[407732952,1772712148273,500.0,0.00011287,2]
[407732953,1772712148359,480.61825066,0.00012,2]
[407732954,1772712148381,290.48393685,0.00012,2]
[407732955,1772712148786,800.0,0.00011287,2]
[407732956,1772712148983,500.0,0.00012,2]
[407732957,1772712149503,500.0,0.00012,2]
[407732958,1772712149599,500.0,0.00012,2]
[407732959,1772712150001,500.0,0.00011287,2]
[407732960,1772712150031,500.0,0.00012,2]
[407732961,1772712150515,500.0,0.00011287,2]
[407732962,1772712150547,500.0,0.00011287,2]
[407732963,1772712150980,501.42269066,0.00012,2]
[407732964,1772712151550,500.0,0.00012,2]
[407732965,1772712152059,500.0,0.00011287,2]
[407732966,1772712152779,500.0,0.00012,2]
[407732967,1772712153619,500.0,0.00012,2]
[407732968,1772712153726,500.0,0.00012,2]
[407732969,1772712153834,943.27005909,0.00011287,2]
[407732972,1772712256501,290.0,0.00015995,2]
[407732973,1772712275258,1174.8333134,0.000162,2]
[407732974,1772712275280,953.67282905,0.000162,2]
[407732975,1772712351173,218.591276,0.00015915,7]
[407732976,1772712386812,505.0,0.00014,2]
[407733000,1772712631759,-300.0,0.00016476,2]
[407733004,1772712631768,-554.31250193,0.00016498,2]
[407733006,1772712631780,-17.43445925,0.00016498,2]
[407733007,1772712631789,-250.0,0.00016498,2]
[407733008,1772712631804,-300.0,0.0001652,2]
[407733009,1772712631813,-86.51366167,0.00016552,2]
[407733010,1772712631833,-80.39417871,0.00016552,2]
[407733011,1772712631843,-209.49092728,0.00016564,2]
[407733012,1772712631855,-2290.50907272,0.00016564,2]
[407733013,1772712631865,-1252.19182951,0.00016645,2]
[407733014,1772712631875,-500.0,0.00016652,2]
[407733015,1772712631885,-342.2632,0.00016653,2]
[407733016,1772712631895,-69352.6378,0.00016653,2]
[407733017,1772712631904,-1320.78,0.0001669,2]
[407733018,1772712631914,-550.0,0.00016752,2]
[407733019,1772712631925,-300.0,0.00016752,2]
[407733025,1772712632336,-1200.0,0.00016752,2]
[407733026,1772712632356,-1000.0,0.00016752,2]
[407733027,1772712632366,-7500.01,0.00016753,2]
[407733028,1772712632375,-150.45,0.0001679,2]
[407733029,1772712632385,-1804.81420462,0.00016822,2]
[407733030,1772712632395,-4929.67153754,0.00016822,2]
[407733031,1772712632406,-80709.3,0.00016866,2]
[407733032,1772712632415,-542.58,0.00016866,2]
[407733033,1772712632425,-200.0,0.00016912,2]
[407733034,1772712632435,-500.0,0.00016921,2]
[407733035,1772712632444,-304.32504306,0.00016921,2]
[407733036,1772712632464,-7286.18,0.00016922,2]
[407733037,1772712632474,-999.99,0.00016922,2]
[407733038,1772712632487,-5597.28,0.00016922,2]
[407733039,1772712632496,-3425.98,0.00016922,2]
[407733040,1772712632506,-9999.99,0.00016922,2]
[407733041,1772712632515,-299.99,0.00016922,4]
[407733042,1772712632527,-150.99,0.00016922,2]
[407733043,1772712632536,-499.99,0.00016922,2]
[407733044,1772712632546,-8346.69,0.00016922,2]
[407733045,1772712632558,-117786.49,0.00016922,2]
[407733046,1772712632567,-9999.99,0.00016922,2]
[407733047,1772712632577,-150.99,0.00016922,2]
[407733048,1772712632586,-151.0,0.00017,2]
[407733049,1772712632596,-151.0,0.00017,2]
[407733050,1772712632607,-150.45,0.0001706,2]
[407733051,1772712632618,-298.0,0.00017121,2]
[407733052,1772712632627,-1320.78,0.00017142,2]
[407733053,1772712632637,-859.0,0.00017253,2]
[407733054,1772712632648,-150.45,0.0001733,2]
[407733055,1772712632658,-1281.88,0.00017358,2]
[407733056,1772712632668,-150.0,0.00017358,2]
[407733057,1772712632678,-200.0,0.0001746,2]
[407733058,1772712632688,-150.45,0.000176,2]
[407733059,1772712632698,-786.02148944,0.000177,2]
[407733060,1772712632710,-1577.18770586,0.00017718,2]
[407733061,1772712637779,-592.30466883,0.00017718,2]
[407733062,1772712637790,-421.70897596,0.00017718,2]
[407733063,1772712637802,-841.41446949,0.00017718,2]
[407733064,1772712637813,-434.15793142,0.00017718,2]
[407733065,1772712637832,-434.49366724,0.00017718,2]
[407733066,1772712637843,-628.40411868,0.00017718,2]
[407733067,1772712637852,-337.11,0.00017781,2]
[407733068,1772712637862,-500.0,0.00017781,2]
[407733069,1772712637871,-215.0,0.0001785,2]
[407733070,1772712637881,-935.0,0.00017858,2]
[407733071,1772712637890,-150.45,0.0001787,2]
[407733072,1772712637900,-175.65490252,0.00017898,2]
[407733073,1772712637910,-232.0,0.00017962,2]
[407733074,1772712637919,-450.65540829,0.00017998,2]
[407733075,1772712637928,-43894.92938619,0.00018,2]
[407733076,1772712637939,-582.48781532,0.00018,2]
[407733077,1772712637950,-1215.64064149,0.00018,2]
[407733078,1772712637966,-447.26367459,0.00018,2]
[407733085,1772712640303,-63766.995221,0.00018,2]
[407733086,1772712640314,-308.58119716,0.00018,2]
[407733087,1772712640323,-1002.27869915,0.00018,2]
[407733088,1772712640333,-420.0,0.00018005,2]
[407733089,1772712640342,-200.0,0.00018008,2]
[407733090,1772712640351,-192.108435,0.00018024,2]
[407733091,1772712640362,-271.0,0.00018052,2]
[407733092,1772712640372,-500.0,0.00018055,2]
[407733093,1772712640382,-1786.2328339,0.000181,2]
[407733094,1772712640391,-500.0,0.00018117,2]
[407733095,1772712640400,-250.0,0.00018117,2]
[407733096,1772712640410,-243.55922517,0.00018117,2]
[407733097,1772712640420,-2500.0,0.00018117,2]
[407733098,1772712640430,-2500.0,0.00018124,2]
[407733099,1772712640439,-300.0,0.00018124,2]
[407733100,1772712640451,-500.0,0.00018124,2]
[407733101,1772712640461,-250.0,0.00018124,2]
[407733102,1772712640471,-150.45,0.0001814,2]
[407733103,1772712640480,-3104.2347021,0.0001821,2]
[407733104,1772712640492,-780.61,0.00018244,2]
[407733105,1772712640501,-286.0,0.00018302,2]
[407733106,1772712640510,-500.0,0.00018313,2]
[407733107,1772712640519,-353.13945149,0.00018329,2]
[407733108,1772712640529,-286.05,0.00018337,2]
[407733109,1772712640538,-1000.0,0.00018369,2]
[407733110,1772712640547,-1680.0,0.00018393,2]
[407733111,1772712640557,-150.45,0.0001841,2]
[407733112,1772712640566,-529.82755712,0.00018413,2]
[407733113,1772712640575,-500.0,0.00018413,2]
[407733114,1772712640585,-500.0,0.00018413,2]
[407733115,1772712640594,-211.30357891,0.00018413,2]
[407733116,1772712640603,-500.0,0.00018413,2]
[407733117,1772712640612,-500.0,0.00018413,2]
[407733118,1772712640621,-191.9447673,0.00018413,2]
[407733119,1772712640629,-151.0,0.00018414,2]
[407733120,1772712640638,-721.12765535,0.00018414,2]
[407733121,1772712640647,-250.0,0.00018414,2]
[407733122,1772712640656,-250.0,0.00018414,2]
[407733123,1772712640665,-209.40437684,0.00018414,2]
[407733124,1772712640674,-1428.38747117,0.00018414,2]
[407733126,1772712640683,-250.0,0.00018414,2]
[407733127,1772712640693,-250.0,0.00018414,2]
[407733128,1772712640703,-250.0,0.00018414,2]
[407733129,1772712640713,-250.0,0.00018414,2]
[407733130,1772712640723,-250.0,0.00018414,2]
[407733131,1772712640731,-250.0,0.00018414,2]
[407733132,1772712640740,-250.0,0.00018414,2]
[407733133,1772712640749,-250.0,0.00018414,2]
[407733134,1772712640759,-250.0,0.00018414,2]
[407733135,1772712640768,-250.0,0.00018414,2]
[407733136,1772712640777,-250.0,0.00018414,2]
[407733137,1772712640786,-250.0,0.00018414,2]
[407733138,1772712640796,-500.0,0.00018414,2]
[407733139,1772712640805,-250.0,0.00018414,2]
[407733140,1772712640814,-250.0,0.00018414,2]
[407733141,1772712640824,-500.0,0.00018414,2]
[407733142,1772712640833,-250.0,0.00018414,2]
[407733143,1772712640842,-250.0,0.00018414,2]
[407733144,1772712640851,-500.0,0.00018414,2]
[407733145,1772712640860,-250.0,0.00018414,2]
[407733146,1772712640869,-500.0,0.00018414,2]
[407733147,1772712640879,-250.0,0.00018414,2]
[407733148,1772712640887,-500.0,0.00018414,2]
[407733149,1772712640897,-500.0,0.00018414,2]
[407733150,1772712640906,-500.0,0.00018414,2]
[407733151,1772712640915,-500.0,0.00018414,2]
[407733152,1772712640924,-270.94567741,0.00018414,2]
[407733153,1772712640933,-500.0,0.00018414,2]
[407733154,1772712640943,-500.0,0.00018414,2]
[407733155,1772712640953,-578.20924308,0.00018414,2]
[407733156,1772712640962,-500.0,0.00018414,2]
[407733157,1772712640972,-300.0,0.00018414,2]
[407733158,1772712640981,-174.61919141,0.00018414,2]
[407733159,1772712640990,-300.0,0.00018414,2]
[407733160,1772712640999,-250.0,0.00018414,2]
[407733161,1772712641322,-300.0,0.00018414,2]
[407733162,1772712641332,-250.0,0.00018414,2]
[407733163,1772712641341,-151.0,0.00018414,2]
[407733164,1772712641350,-300.0,0.00018414,2]
[407733165,1772712641359,-250.0,0.00018414,2]
[407733166,1772712641369,-300.0,0.00018414,2]
[407733167,1772712641378,-250.0,0.00018414,2]
[407733168,1772712641387,-300.0,0.00018414,2]
[407733169,1772712641396,-250.0,0.00018414,2]
[407733170,1772712641405,-300.0,0.00018414,2]
[407733171,1772712641414,-250.0,0.00018414,2]
[407733172,1772712641423,-250.0,0.00018414,2]
[407733173,1772712641432,-300.0,0.00018414,2]
[407733174,1772712641440,-250.0,0.00018414,2]
[407733175,1772712641449,-305.95163096,0.00018414,2]
[407733176,1772712641458,-250.0,0.00018414,2]
[407733177,1772712641469,-693.3919763,0.00018414,2]
[407733178,1772712641478,-262.90206542,0.00018414,2]
[407733179,1772712641491,-250.0,0.00018414,2]
[407733180,1772712641500,-250.0,0.00018414,2]
[407733181,1772712641509,-250.0,0.00018414,2]
[407733182,1772712641519,-151.0,0.00018414,2]
[407733183,1772712641529,-250.0,0.00018414,2]
[407733184,1772712641540,-151.0,0.00018414,2]
[407733185,1772712641549,-250.0,0.00018414,2]
[407733186,1772712641559,-151.0,0.00018414,2]
[407733187,1772712641568,-250.0,0.00018414,2]
[407733188,1772712641576,-151.0,0.00018414,2]
[407733189,1772712641585,-250.0,0.00018414,2]
[407733190,1772712641594,-151.0,0.00018414,2]
[407733191,1772712641604,-250.0,0.00018414,2]
[407733192,1772712641613,-151.0,0.00018414,2]
[407733193,1772712641622,-151.0,0.00018414,2]
[407733194,1772712641630,-500.0,0.00018414,2]
[407733195,1772712641639,-209.40437684,0.00018414,2]
[407733196,1772712641648,-151.0,0.00018414,2]
[407733197,1772712641657,-500.0,0.00018414,2]
[407733198,1772712641666,-151.0,0.00018414,2]
[407733199,1772712641675,-500.0,0.00018414,2]
[407733200,1772712641684,-151.0,0.00018414,2]
[407733201,1772712641693,-500.0,0.00018414,2]
[407733202,1772712641702,-151.0,0.00018414,2]
[407733203,1772712641711,-500.0,0.00018414,2]
[407733204,1772712641722,-500.0,0.00018414,2]
[407733205,1772712641731,-500.0,0.00018414,2]
[407733206,1772712641741,-500.0,0.00018414,2]
[407733207,1772712641750,-500.0,0.00018414,2]
[407733208,1772712641759,-500.0,0.00018414,2]
[407733209,1772712641768,-500.0,0.00018414,2]
[407733210,1772712641777,-250.0,0.00018414,2]
[407733211,1772712641785,-500.0,0.00018414,2]
[407733212,1772712641795,-500.0,0.00018414,2]
[407733213,1772712641804,-500.0,0.00018414,2]
[407733214,1772712641814,-500.0,0.00018414,2]
[407733215,1772712641823,-500.0,0.00018414,2]
[407733216,1772712641832,-500.0,0.00018414,2]
[407733217,1772712641842,-500.0,0.00018414,2]
[407733218,1772712641851,-500.0,0.00018414,2]
[407733219,1772712641860,-743.50770149,0.00018414,2]
[407733220,1772712641869,-500.0,0.00018414,2]
[407733221,1772712641878,-500.0,0.00018414,2]
[407733222,1772712641888,-209.40437684,0.00018414,2]
[407733223,1772712641897,-693.3919763,0.00018414,2]
[407733224,1772712641906,-269.917619,0.00018414,2]
[407733225,1772712641915,-151.0,0.00018469,2]
[407733226,1772712641924,-719.04747942,0.00018469,2]
[407733227,1772712641934,-1770.61,0.00018514,2]
[407733228,1772712641943,-151.3078191,0.00018514,2]
[407733229,1772712641952,-780.61,0.00018518,2]
[407733230,1772712641961,-151.0,0.00018524,2]
[407733231,1772712641972,-745.65223616,0.00018524,2]
[407733232,1772712641981,-156.476,0.00018526,2]
[407733233,1772712641991,-500.0,0.00018526,2]
[407733234,1772712642000,-500.0,0.00018526,2]
[407733235,1772712642009,-500.0,0.00018526,2]
[407733236,1772712642018,-500.0,0.00018526,2]
[407733237,1772712642027,-500.0,0.00018526,2]
[407733238,1772712642037,-500.0,0.00018526,2]
[407733239,1772712642046,-500.0,0.00018526,2]
[407733240,1772712642055,-500.0,0.00018526,2]
[407733241,1772712642063,-500.0,0.00018526,2]
[407733242,1772712642072,-500.0,0.00018526,2]
[407733243,1772712642083,-159670.1461144,0.00018527,2]
[407733244,1772712642092,-1220.9009825,0.00018527,2]
[407733245,1772712642101,-9707.0071232,0.00018527,2]
[407733246,1772712642110,-34714.66634103,0.00018527,2]
[407733247,1772712642123,-538.80918958,0.00018527,2]
[407733248,1772712642134,-590.0917593,0.00018527,2]
[407733249,1772712642145,-606.6000014,0.00018527,2]
[407733250,1772712642155,-2266.52124996,0.00018527,2]
[407733251,1772712642174,-342.26322073,0.00018527,2]
[407733256,1772712643275,-318.58422049,0.00018527,2]
[407733257,1772712643298,-13379.45247933,0.00018527,2]
[407733258,1772712643313,-581.58634657,0.00018527,2]
[407733278,1772712646110,-360.39199913,0.00018527,2]
[407733281,1772712646121,-2164.42705544,0.00018527,2]
[407733283,1772712646132,-1632.58115928,0.00018527,2]
[407733285,1772712646144,-10236.96248966,0.00018527,2]
[407733287,1772712646154,-150.2804424,0.00018527,2]
[407733291,1772712743390,506.0,0.00014,2]
[407733292,1772712887519,1919.91,0.00014599,2]
[407733293,1772713108954,506.0,0.00014,2]
[407733294,1772713127626,153.46,0.00014643,2]
[407733295,1772713253438,510.69766,0.00014,2]
[407733296,1772713440261,506.0,0.00014,2]
[407733298,1772713636021,500.0,0.00012,2]
[407733299,1772713636338,565.66297255,0.00012,2]
[407733300,1772713636633,500.0,0.00012,2]
[407733301,1772713637225,500.0,0.00011287,2]
[407733302,1772713720937,1241.05,0.00012,2]
[407733316,1772713831968,-287.0,0.0001637,2]
[407733318,1772713831978,-500.0,0.0001637,2]
[407733320,1772713831992,-250.0,0.00016474,2]
[407733322,1772713832003,-1595.9638018,0.00016628,2]
[407733324,1772713832015,-397.84647269,0.00016628,2]
[407733325,1772713832027,-297.04785907,0.00016628,2]
[407733326,1772713832039,-209.14186644,0.00016628,2]
[407733327,1772713832050,-218.991965,0.0001672,7]
[407733328,1772713832060,-671.46,0.00016748,2]
[407733329,1772713832070,-166.66,0.00016785,2]
[407733330,1772713832080,-156.52,0.00016788,2]
[407733331,1772713832090,-217.17,0.0001679,2]
[407733332,1772713832100,-220.27,0.00016882,2]
[407733333,1772713832109,-300.0,0.00016919,2]
[407733334,1772713832119,-300.0,0.00016919,2]
[407733335,1772713832128,-88.52482005,0.00016919,2]
[407733336,1772713832149,-1111.47517995,0.00016919,2]
[407733337,1772713832163,-550.0,0.0001692,2]
[407733338,1772713832173,-300.0,0.0001692,2]
[407733339,1772713832183,-156.476,0.00016921,2]
[407733340,1772713832193,-500.0,0.00016921,2]
[407733342,1772713832203,-500.0,0.00016921,2]
[407733344,1772713832214,-500.0,0.00016921,2]
[407733346,1772713832226,-500.0,0.00016921,2]
[407733348,1772713832236,-500.0,0.00016921,2]
[407733350,1772713832246,-500.0,0.00016921,2]
[407733352,1772713832256,-500.0,0.00016921,2]
[407733354,1772713832265,-500.0,0.00016921,2]
[407733356,1772713832274,-500.0,0.00016921,2]
[407733357,1772713832283,-2971.71374826,0.00016965,2]
[407733358,1772713832295,-268.28625174,0.00016965,2]
[407733359,1772713832304,-204.0,0.00017,10]
[407733360,1772713832314,-186.0,0.00017,2]
[407733361,1772713832323,-200.0,0.00017022,2]
[407733363,1772713832333,-368.94,0.00017056,2]
[407733365,1772713832342,-217.17,0.0001706,2]
[407733367,1772713832351,-555.0,0.00017079,2]
[407733368,1772713832360,-150.99,0.00017139,2]
[407733369,1772713832369,-948.19849069,0.00017139,2]
[407733370,1772713832381,-51.79150931,0.00017139,2]
[407733371,1772713832395,-150.99,0.00017139,2]
[407733372,1772713832404,-7095.46634864,0.00017139,2]
[407733373,1772713832426,-2015.80487419,0.00017139,2]
[407733374,1772713832440,-888.71877717,0.00017139,2]
[407733375,1772713832450,-157.71094737,0.00017139,4]
[407733376,1772713832466,-142.27905263,0.00017139,4]
[407733377,1772713832477,-586.72094737,0.00017139,2]
[407733378,1772713832489,-563.90783571,0.00017139,2]
[407733379,1772713832505,-4378.77121692,0.00017139,2]
[407733380,1772713832514,-166.66,0.00017139,2]
[407733381,1772713832524,-484.04795042,0.00017167,2]
[407733382,1772713832535,-187.41204958,0.00017167,2]
[407733383,1772713832545,-200.0,0.00017216,2]
[407733384,1772713832554,-357.0,0.00017229,2]
[407733385,1772713832564,-61.58795042,0.00017252,2]
[407733386,1772713838059,-138.41204958,0.00017252,2]
[407733387,1772713838070,-292.6333936,0.00017263,2]
[407733388,1772713838146,-623.95444367,0.00017263,2]
[407733390,1772713840408,-781.06101906,0.00017263,2]
[407733391,1772713840422,-497.12974831,0.00017263,2]
[407733392,1772713840627,-1438.70698547,0.00017263,2]
[407733393,1772713840852,-20893.30440989,0.00017263,2]
[407733394,1772713840861,-216.06078434,0.00017264,2]
[407733395,1772713840872,-217.17,0.0001733,2]
[407733396,1772713840885,-166.66,0.00017492,2]
[407733397,1772713840894,-671.46,0.00017585,2]
[407733398,1772713840903,-217.17,0.000176,2]
[407733399,1772713840915,-500.0,0.00017744,2]
[407733400,1772713840931,-202.72622012,0.000178,2]
[407733401,1772713840940,-166.66,0.00017845,2]
[407733402,1772713840949,-217.17,0.0001787,2]
[407733403,1772713840960,-671.46,0.00018004,2]
[407733405,1772713840971,-5000.0,0.00018007,2]
[407733406,1772713840981,-250.0,0.00018007,2]
[407733407,1772713840991,-500.0,0.00018007,2]
[407733408,1772713841000,-250.0,0.00018007,2]
[407733409,1772713841012,-300.0,0.00018007,2]
[407733410,1772713841022,-243.55922517,0.00018007,2]
[407733411,1772713841032,-2500.0,0.00018007,2]
[407733412,1772713841042,-500.0,0.00018007,2]
[407733413,1772713841051,-2463.64215827,0.00018007,2]
[407733414,1772713841061,-353.13945149,0.00018018,2]
[407733415,1772713841071,-935.0,0.0001802,2]
[407733416,1772713841082,-151.0,0.00018069,2]
[407733417,1772713841092,-721.12765535,0.00018069,2]
[407733418,1772713841103,-250.0,0.00018069,2]
[407733419,1772713841112,-151.0,0.00018069,2]
[407733420,1772713841123,-250.0,0.00018069,2]
[407733421,1772713841134,-250.0,0.00018069,2]
[407733422,1772713841145,-151.0,0.00018069,2]
[407733423,1772713841155,-250.0,0.00018069,2]
[407733424,1772713841164,-250.0,0.00018069,2]
[407733425,1772713841174,-151.0,0.00018069,2]
[407733426,1772713841186,-250.0,0.00018069,2]
[407733427,1772713841196,-151.0,0.00018069,2]
[407733428,1772713841207,-250.0,0.00018069,2]
[407733429,1772713841218,-151.0,0.00018069,2]
[407733430,1772713841228,-250.0,0.00018069,2]
[407733431,1772713841237,-151.0,0.00018069,2]
[407733432,1772713841249,-151.0,0.00018069,2]
[407733433,1772713841264,-151.0,0.00018069,2]
[407733434,1772713841275,-151.0,0.00018069,2]
[407733435,1772713841286,-151.0,0.00018069,2]
[407733436,1772713841296,-250.0,0.00018069,2]
[407733437,1772713841307,-151.0,0.00018069,2]
[407733438,1772713841316,-209.40437684,0.00018069,2]
[407733439,1772713841327,-174.61919141,0.00018069,2]
[407733440,1772713841338,-250.0,0.00018069,2]
[407733441,1772713841347,-250.0,0.00018069,2]
[407733442,1772713841357,-250.0,0.00018069,2]
[407733443,1772713841368,-270.94567741,0.00018069,2]
[407733444,1772713841377,-250.0,0.00018069,2]
[407733445,1772713841386,-209.40437684,0.00018069,2]
[407733446,1772713841395,-250.0,0.00018069,2]
[407733447,1772713841404,-250.0,0.00018069,2]
[407733448,1772713841416,-250.0,0.00018069,2]
[407733449,1772713841426,-250.0,0.00018069,2]
[407733450,1772713841437,-250.0,0.00018069,2]
[407733451,1772713841448,-250.0,0.00018069,2]
[407733452,1772713841460,-500.0,0.00018069,2]
[407733453,1772713841470,-250.0,0.00018069,2]
[407733454,1772713841482,-500.0,0.00018069,2]
[407733455,1772713841491,-250.0,0.00018069,2]
[407733456,1772713841502,-250.0,0.00018069,2]
[407733457,1772713841511,-500.0,0.00018069,2]
[407733458,1772713841522,-250.0,0.00018069,2]
[407733459,1772713841534,-250.0,0.00018069,2]
[407733460,1772713841544,-500.0,0.00018069,2]
[407733461,1772713841556,-250.0,0.00018069,2]
[407733462,1772713841568,-250.0,0.00018069,2]
[407733463,1772713841580,-500.0,0.00018069,2]
[407733464,1772713841590,-500.0,0.00018069,2]
[407733465,1772713841600,-250.0,0.00018069,2]
[407733466,1772713841610,-500.0,0.00018069,2]
[407733467,1772713841622,-500.0,0.00018069,2]
[407733468,1772713841635,-250.0,0.00018069,2]
[407733469,1772713841646,-500.0,0.00018069,2]
[407733470,1772713841657,-500.0,0.00018069,2]
[407733471,1772713841668,-250.0,0.00018069,2]
[407733472,1772713841677,-500.0,0.00018069,2]
[407733473,1772713841688,-500.0,0.00018069,2]
[407733474,1772713841699,-578.20924308,0.00018069,2]
[407733475,1772713841710,-500.0,0.00018069,2]
[407733476,1772713841721,-500.0,0.00018069,2]
[407733477,1772713841731,-500.0,0.00018069,2]
[407733478,1772713841741,-500.0,0.00018069,2]
[407733479,1772713841753,-500.0,0.00018069,2]
[407733480,1772713841763,-500.0,0.00018069,2]
[407733481,1772713841773,-500.0,0.00018069,2]
[407733482,1772713841783,-500.0,0.00018069,2]
[407733483,1772713841794,-500.0,0.00018069,2]
[407733484,1772713841805,-743.50770149,0.00018069,2]
[407733485,1772713841815,-250.0,0.00018069,2]
[407733486,1772713841826,-500.0,0.00018069,2]
[407733487,1772713841843,-250.0,0.00018069,2]
[407733488,1772713841854,-500.0,0.00018069,2]
[407733489,1772713841864,-250.0,0.00018069,2]
[407733490,1772713841875,-500.0,0.00018069,2]
[407733491,1772713841886,-500.0,0.00018069,2]
[407733492,1772713841897,-500.0,0.00018069,2]
[407733493,1772713841911,-500.0,0.00018069,2]
[407733494,1772713841922,-250.0,0.00018069,2]